fUSD/lending_fUSD_20260421
["ID","MTS","AMOUNT","RATE_DAILY","PERIOD"]
[420938482,1776755443737,-158.91744415,0.00010685,2]
[420938483,1776755443747,-259.76705874,0.00010685,2]
[420938484,1776755443758,-152.44980428,0.00010685,2]
[420938485,1776755443768,-159.99460691,0.00010685,2]
[420938486,1776755443778,-5907.6044216,0.00010687,2]
[420938487,1776755443788,-200.0,0.00010687,2]
[420938488,1776755443798,-81861.79473805,0.000107,2]
[420938489,1776755445558,-136896.8766606,0.000107,2]
[420938490,1776755445613,-3276.80224774,0.000107,2]
[420938492,1776755514864,-4886.457,9.488e-05,2]
[420938493,1776755514886,-330.667,9.488e-05,2]
[420938496,1776756333498,-1891.92,9.457e-05,2]
[420938497,1776756333524,-300.0,9.472e-05,2]
[420938498,1776756333550,-300.0,9.487e-05,2]
[420938499,1776756333577,-300.0,9.487e-05,2]
[420938500,1776756333602,-480.0,9.487e-05,2]
[420938501,1776756333627,-3909.165,9.488e-05,2]
[420938502,1776756333652,-264.533,9.488e-05,2]
[420938503,1776756370140,-300.88283027,9.511e-05,2]
[420938504,1776756370166,-500.0,9.543e-05,2]
[420938505,1776756370192,-2500.0,9.582e-05,2]
[420938506,1776756370217,-501.70516219,9.663e-05,2]
[420938507,1776756370242,-150.0,9.68e-05,2]
[420938508,1776756370273,-500.0,9.681e-05,2]
[420938509,1776756370303,-500.0,9.681e-05,2]
[420938510,1776756370334,-500.0,9.681e-05,2]
[420938511,1776756370363,-500.0,9.681e-05,2]
[420938512,1776756370394,-500.0,9.681e-05,2]
[420938513,1776756370424,-500.0,9.681e-05,2]
[420938514,1776756370456,-1.79400754,9.681e-05,2]
[420938520,1776756499186,160.11018772,0.000165,30]
[420938526,1776756631803,-560.6433,9.58e-05,2]
[420938527,1776756632004,-66.77372254,9.58e-05,2]
[420938529,1776756632016,-572.58297746,9.58e-05,2]
[420938530,1776756632026,-150.0,9.58e-05,2]
[420938531,1776756632040,-715.62832852,9.581e-05,2]
[420938540,1776756637982,-4647.63924482,9.581e-05,2]
[420938541,1776756637995,-12670.45532666,9.581e-05,2]
[420938542,1776756638005,-12700.5661,9.581e-05,2]
[420938543,1776756638014,-2500.0,9.582e-05,2]
[420938544,1776756638024,-5000.0,9.582e-05,2]
[420938545,1776756638034,-500.0,9.597e-05,2]
[420938546,1776756638044,-2000.0,9.644e-05,2]
[420938547,1776756638054,-171.83,9.681e-05,2]
[420938548,1776756638064,-2587.06,9.69e-05,2]
[420938549,1776756638073,-260.0,9.863e-05,2]
[420938550,1776756638083,-1852.42,9.937e-05,2]
[420938551,1776756638093,-171.83,9.955e-05,2]
[420938552,1776756638103,-721.12765535,9.975e-05,2]
[420938553,1776756638112,-1001.0278181,0.00010037,2]
[420938554,1776756638129,-998.9721819,0.00010037,2]
[420938555,1776756638139,-171.85,0.00010229,2]
[420938556,1776756638148,-679.0,0.00010324,5]
[420938557,1776756638158,-538.0,0.00010324,5]
[420938558,1776756638167,-150.99,0.00010475,2]
[420938559,1776756638177,-127.81217368,0.00010475,2]
[420938560,1776756638309,-255.55839712,0.00010475,2]
[420938577,1776756641715,-300.0,0.00010475,2]
[420938578,1776756641730,-2088.11203752,0.00010475,2]
[420938579,1776756641921,-37.33904482,0.00010475,2]
[420938589,1776756642982,-499.9628156,9.651e-05,2]
[420938590,1776756642992,-7191.16834686,0.00010475,2]
[420938591,1776756643001,-4826.76031516,0.00010475,2]
[420938592,1776756643012,-3150.53968484,0.00010475,2]
[420938593,1776756643022,-299.99,0.00010475,2]
[420938594,1776756643031,-255.0,0.00010538,2]
[420938595,1776756643040,-1264.25,0.00010574,2]
[420938596,1776756643050,-927.0,0.00010574,2]
[420938597,1776756643059,-1219.0,0.00010574,2]
[420938598,1776756643068,-1034.64104684,0.00010574,2]
[420938599,1776756643079,-1299.54842998,0.00010574,2]
[420938600,1776756643091,-478.51655685,0.00010574,2]
[420938601,1776756643110,-717.29396633,0.00010574,2]
[420938602,1776756643119,-623.0,0.00010574,2]
[420938603,1776756643130,-666.66666,0.0001059,2]
[420938604,1776756643139,-666.66667,0.0001059,2]
[420938605,1776756643148,-161.0,0.000106,2]
[420938606,1776756643158,-666.66667,0.0001061,2]
[420938607,1776756643167,-666.66667,0.0001064,2]
[420938608,1776756643176,-1612.2870258,0.00010661,2]
[420938609,1776756643185,-320.22299895,0.00010699,2]
[420938610,1776756643194,-500.0,0.00010699,2]
[420938611,1776756643203,-500.0,0.00010699,2]
[420938612,1776756643213,-500.0,0.00010699,2]
[420938613,1776756643222,-500.0,0.00010699,2]
[420938614,1776756643232,-500.0,0.00010699,2]
[420938615,1776756643241,-500.0,0.00010699,2]
[420938616,1776756643250,-692.22550791,0.00010699,2]
[420938617,1776756643259,-692.22550791,0.00010699,2]
[420938618,1776756643268,-692.22550791,0.00010699,2]
[420938619,1776756643277,-692.22550791,0.00010699,2]
[420938620,1776756643286,-692.22550791,0.00010699,2]
[420938621,1776756643295,-692.22550791,0.00010699,2]
[420938622,1776756643305,-692.22550791,0.00010699,2]
[420938623,1776756643314,-692.22550791,0.00010699,2]
[420938624,1776756643323,-692.22550791,0.00010699,2]
[420938625,1776756643332,-692.22550791,0.00010699,2]
[420938626,1776756643342,-692.22550791,0.00010699,2]
[420938627,1776756643351,-692.22550791,0.00010699,2]
[420938628,1776756643360,-692.22550791,0.00010699,2]
[420938629,1776756643370,-692.22550791,0.00010699,2]
[420938630,1776756643379,-692.22550791,0.00010699,2]
[420938631,1776756643388,-692.22550791,0.00010699,2]
[420938632,1776756643398,-692.22550791,0.00010699,2]
[420938633,1776756643407,-692.22550791,0.00010699,2]
[420938634,1776756643416,-692.22550791,0.00010699,2]
[420938635,1776756643425,-692.22550791,0.00010699,2]
[420938636,1776756643435,-692.22550791,0.00010699,2]
[420938637,1776756643445,-692.22550791,0.00010699,2]
[420938638,1776756643454,-692.22550791,0.00010699,2]
[420938639,1776756643464,-692.22550791,0.00010699,2]
[420938640,1776756643473,-692.22550791,0.00010699,2]
[420938641,1776756643482,-692.22550791,0.00010699,2]
[420938642,1776756643491,-692.22550791,0.00010699,2]
[420938643,1776756643501,-692.22550791,0.00010699,2]
[420938644,1776756643510,-692.22550791,0.00010699,2]
[420938645,1776756643519,-692.22550791,0.00010699,2]
[420938646,1776756643528,-692.22550791,0.00010699,2]
[420938647,1776756643539,-692.22550791,0.00010699,2]
[420938648,1776756643548,-692.22550791,0.00010699,2]
[420938649,1776756643558,-692.22550791,0.00010699,2]
[420938650,1776756643568,-692.22550791,0.00010699,2]
[420938651,1776756643577,-692.22550791,0.00010699,2]
[420938652,1776756643586,-692.22550791,0.00010699,2]
[420938653,1776756643596,-692.22550791,0.00010699,2]
[420938654,1776756643605,-692.22550791,0.00010699,2]
[420938655,1776756643615,-692.22550791,0.00010699,2]
[420938656,1776756643625,-692.22550791,0.00010699,2]
[420938657,1776756643634,-692.22550791,0.00010699,2]
[420938658,1776756643643,-692.22550791,0.00010699,2]
[420938659,1776756643654,-692.22550791,0.00010699,2]
[420938660,1776756643663,-692.22550791,0.00010699,2]
[420938661,1776756643673,-692.22550791,0.00010699,2]
[420938662,1776756643683,-692.22550791,0.00010699,2]
[420938663,1776756643692,-692.22550791,0.00010699,2]
[420938664,1776756643701,-692.22550791,0.00010699,2]
[420938665,1776756643711,-692.22550791,0.00010699,2]
[420938666,1776756643720,-692.22550791,0.00010699,2]
[420938667,1776756643729,-692.22550791,0.00010699,2]
[420938668,1776756643738,-692.22550791,0.00010699,2]
[420938669,1776756643748,-692.22550791,0.00010699,2]
[420938670,1776756643758,-692.22550791,0.00010699,2]
[420938671,1776756643768,-692.22550791,0.00010699,2]
[420938672,1776756643777,-692.22550791,0.00010699,2]
[420938673,1776756643787,-692.22550791,0.00010699,2]
[420938674,1776756643796,-500.0,0.00010699,2]
[420938675,1776756643806,-217.93877163,0.00010699,2]
[420938676,1776756643816,-500.0,0.00010699,2]
[420938677,1776756643825,-472.79513729,0.00010699,2]
[420938678,1776756643834,-692.22550791,0.00010699,2]
[420938679,1776756643843,-692.22550791,0.00010699,2]
[420938680,1776756643852,-692.22550791,0.00010699,2]
[420938681,1776756643861,-761.44805869,0.00010699,2]
[420938682,1776756643870,-761.44805869,0.00010699,2]
[420938683,1776756643881,-761.44805869,0.00010699,2]
[420938684,1776756643890,-761.44805869,0.00010699,2]
[420938685,1776756643899,-761.44805869,0.00010699,2]
[420938686,1776756643908,-761.44805869,0.00010699,2]
[420938687,1776756643917,-761.44805869,0.00010699,2]
[420938688,1776756643926,-761.44805869,0.00010699,2]
[420938689,1776756643935,-761.44805869,0.00010699,2]
[420938690,1776756643944,-761.44805869,0.00010699,2]
[420938691,1776756643953,-761.44805869,0.00010699,2]
[420938692,1776756643963,-761.44805869,0.00010699,2]
[420938693,1776756643972,-761.44805869,0.00010699,2]
[420938694,1776756643981,-761.44805869,0.00010699,2]
[420938695,1776756643990,-761.44805869,0.00010699,2]
[420938696,1776756644000,-761.44805869,0.00010699,2]
[420938697,1776756644009,-761.44805869,0.00010699,2]
[420938698,1776756644018,-761.44805869,0.00010699,2]
[420938699,1776756644027,-761.44805869,0.00010699,2]
[420938700,1776756644037,-761.44805869,0.00010699,2]
[420938701,1776756644046,-761.44805869,0.00010699,2]
[420938702,1776756644055,-761.44805869,0.00010699,2]
[420938703,1776756644064,-761.44805869,0.00010699,2]
[420938704,1776756644073,-761.44805869,0.00010699,2]
[420938705,1776756644082,-500.0,0.00010699,2]
[420938706,1776756644091,-500.0,0.00010699,2]
[420938707,1776756644100,-500.0,0.00010699,2]
[420938708,1776756644109,-521.39981744,0.00010699,2]
[420938709,1776756644118,-500.0,0.00010699,2]
[420938710,1776756644128,-500.0,0.00010699,2]
[420938711,1776756644137,-500.0,0.00010699,2]
[420938712,1776756644146,-15934.84605277,0.000107,2]
[420938713,1776756644156,-132962.22018649,0.000107,2]
[420938714,1776756644165,-159337.19096098,0.000107,2]
[420938715,1776756644174,-98046.4344263,0.000107,2]
[420938716,1776756644183,-666.66666,0.000107,2]
[420938717,1776756644192,-666.66667,0.000107,2]
[420938718,1776756644202,-150.62053055,0.00010701,2]
[420938719,1776756644211,-200.14,0.00010712,2]
[420938720,1776756644220,-150.0,0.00010834,2]
[420938721,1776756644230,-500.0,0.00010877,2]
[420938722,1776756644239,-185.6,0.00010954,2]
[420938723,1776756644248,-200.0,0.00010959,2]
[420938724,1776756644257,-200.0,0.00010959,2]
[420938725,1776756644266,-200.0,0.00010959,2]
[420938726,1776756644275,-500.0,0.00010959,2]
[420938727,1776756644284,-200.0,0.00010959,2]
[420938728,1776756644293,-1054.07,0.00010959,2]
[420938729,1776756644303,-150.0,0.00010959,2]
[420938730,1776756644312,-3240.0,0.00010959,2]
[420938731,1776756644321,-405.28,0.00011,2]
[420938732,1776756644330,-450.95,0.00011018,2]
[420938733,1776756644339,-450.95,0.00011018,2]
[420938734,1776756644348,-151.0,0.00011042,2]
[420938735,1776756644357,-172.98,0.00011046,2]
[420938736,1776756644366,-450.95833021,0.00011097,2]
[420938737,1776756644375,-164.76,0.00011109,2]
[420938738,1776756644384,-488.78,0.00011209,2]
[420938739,1776756644394,-246.06,0.00011221,2]
[420938740,1776756644403,-245.6,0.00011233,2]
[420938741,1776756644412,-1600.0,0.00011274,2]
[420938742,1776756644424,-2000.0,0.00011291,2]
[420938743,1776756644433,-1166.29,0.00011337,2]
[420938744,1776756644442,-941.29,0.00011507,2]
[420938745,1776756644451,-454.94,0.00011585,2]
[420938746,1776756644460,-433.0,0.00011592,2]
[420938747,1776756644470,-501.0,0.00011616,2]
[420938748,1776756644479,-169.06,0.00011697,2]
[420938749,1776756644488,-149.53682041,0.000117,4]
[420938759,1776756645932,-152.0,0.00010588,7]
[420938760,1776756645942,-152.0,0.00010702,7]
[420938761,1776756645951,-150.46317959,0.000117,4]
[420938762,1776756645961,-162.7995,0.00011779,2]
[420938763,1776756645970,-13868.56,0.00011791,2]
[420938764,1776756645980,-700.0,0.000118,4]
[420938765,1776756645989,-426.97,0.00011807,2]
[420938766,1776756645999,-150.0,0.00011834,2]
[420938767,1776756646009,-477.92,0.00011873,2]
[420938768,1776756646018,-172.98,0.00011888,2]
[420938769,1776756646028,-1100.0,0.000119,4]
[420938770,1776756646037,-500.0,0.00011973,2]
[420938771,1776756646047,-20.03022917,0.00011973,2]
[420938772,1776756646069,-481.89543614,0.00011973,2]
[420938773,1776756646079,-500.0,0.00011973,2]
[420938774,1776756646088,-169.879045,0.00011973,2]
[420938775,1776756646098,-502.71580444,0.00011973,2]
[420938776,1776756646108,-500.0,0.00011973,2]
[420938777,1776756646117,-504.05553413,0.00011973,2]
[420938778,1776756646126,-28.51139432,0.00011973,2]
[420938819,1776756750631,194.49377345,0.00016226,30]
[420938898,1776757120837,10000.01,7.49e-05,2]
[420938899,1776757120861,10000.01,7.49e-05,2]
[420938900,1776757120884,10000.01,7.49e-05,2]
[420938901,1776757120907,10000.01,7.49e-05,2]
[420938902,1776757120930,10000.01,7.49e-05,2]
[420938903,1776757120953,10000.01,7.49e-05,2]
[420938904,1776757121449,10000.01,7.49e-05,2]
[420938905,1776757121503,10000.01,7.49e-05,2]
[420938906,1776757121526,10000.01,7.49e-05,2]
[420938907,1776757121548,10000.01,7.49e-05,2]
[420938908,1776757121575,376008.9917,7.49e-05,2]
[420938909,1776757146758,153.0,7.49e-05,3]
[420938910,1776757147975,9847.01,7.945e-05,2]
[420938911,1776757148000,85.657426,7.945e-05,2]
[420938912,1776757207421,153.0,7.945e-05,3]
[420938913,1776757207483,165.0,7.945e-05,3]
[420938914,1776757244224,152.0,7.57e-05,7]
[420938915,1776757262537,475.21478668,7.49e-05,2]
[420938916,1776757265434,153.0,7.945e-05,3]
[420938917,1776757291016,2001.0,0.000165,30]
[420938918,1776757326576,153.0,7.945e-05,3]
[420938919,1776757375245,-1000.0,9.575e-05,2]
[420938920,1776757375270,-300.0,9.578e-05,2]
[420938921,1776757375311,-12698.7029,9.581e-05,2]
[420938922,1776757375336,-75158.2971,9.695e-05,2]
[420938923,1776757404477,-300.0,9.694e-05,2]
[420938924,1776757404501,-153.0,9.695e-05,3]
[420938925,1776757404525,-4186.0,9.695e-05,2]
[420938926,1776757491365,1007.22,0.000165,30]
[420938927,1776757497608,10000.01,7.49e-05,2]
[420938928,1776757497632,10000.01,7.49e-05,2]
[420938929,1776757497655,10000.01,7.49e-05,2]
[420938930,1776757497684,10000.01,7.49e-05,2]
[420938931,1776757497707,10000.01,7.49e-05,2]
[420938932,1776757497731,9849.01,7.49e-05,2]
[420938933,1776757512669,151.0,7.49e-05,3]
[420938934,1776757512693,14.0,7.49e-05,3]
[420938935,1776757514546,153.0,7.49e-05,3]
[420938936,1776757520122,153.719396,7.945e-05,2]
[420938940,1776757567250,153.0,7.49e-05,3]
[420938943,1776757626842,153.0,7.49e-05,3]
[420938944,1776757685876,154.0,7.49e-05,3]
[420938945,1776757751239,154.0,7.49e-05,3]
[420938946,1776757806163,154.0,7.49e-05,3]
[420938955,1776757831957,-1500.0,9.522e-05,2]
[420938956,1776757831968,-213.59,9.624e-05,2]
[420938957,1776757831979,-1200.0,9.694e-05,2]
[420938958,1776757831989,-300.0,9.695e-05,2]
[420938959,1776757832000,-4248.69260812,9.695e-05,2]
[420938960,1776757832063,-2447.78029188,9.695e-05,2]
[420938961,1776757832073,-300.0,9.815e-05,2]
[420938962,1776757832083,-260.0,9.863e-05,2]
[420938963,1776757832093,-200.0,9.9e-05,3]
[420938964,1776757832103,-500.0,0.0001,3]
[420938965,1776757832119,-300.0,0.00010197,2]
[420938966,1776757832129,-150.0,0.00010199,2]
[420938967,1776757832139,-1424.40454998,0.000102,2]
[420938968,1776757832149,-3507.43561174,0.000102,2]
[420938969,1776757832159,-3450.61467708,0.000102,2]
[420938970,1776757832169,-1205.48571967,0.000102,2]
[420938971,1776757832187,-2631.98364915,0.000102,2]
[420938972,1776757832197,-3177.40185475,0.000102,2]
[420938973,1776757832207,-171.57699613,0.000102,2]
[420938974,1776757832217,-219.10622492,0.000102,2]
[420938975,1776757832230,-207.29729279,0.000102,2]
[420938976,1776757832240,-214.99938907,0.000102,2]
[420938977,1776757832251,-150.40065152,0.000102,2]
[420938978,1776757832260,-151.78214239,0.000102,2]
[420938979,1776757832271,-151.39445506,0.000102,2]
[420938981,1776757832281,-152.38825859,0.000102,2]
[420938982,1776757832292,-30000.03,0.00010269,2]
[420938984,1776757832302,-58215.69321632,0.00010269,2]
[420938985,1776757832319,-655.67648368,0.00010269,2]
[420938986,1776757832329,-3925.16319269,0.00010275,2]
[420938987,1776757832343,-531.73649619,0.00010275,2]
[420938997,1776757838270,-543.10031112,0.00010275,2]
[420938998,1776757838283,-2500.0,0.00010275,2]
[420938999,1776757838295,-500.0,0.00010368,2]
[420939000,1776757838308,-500.0,0.00010368,2]
[420939001,1776757838320,-507.47291306,0.00010368,2]
[420939002,1776757838332,-500.0,0.00010368,2]
[420939003,1776757838344,-500.0,0.00010368,2]
[420939004,1776757838357,-500.0,0.00010368,2]
[420939005,1776757838369,-500.0,0.00010368,2]
[420939006,1776757838381,-500.0,0.00010368,2]
[420939007,1776757838393,-500.0,0.00010368,2]
[420939008,1776757838404,-500.0,0.00010368,2]
[420939009,1776757838416,-500.0,0.00010368,2]
[420939010,1776757838429,-500.0,0.00010368,2]
[420939011,1776757838440,-336.29719338,0.00010368,2]
[420939012,1776757838452,-500.0,0.00010368,2]
[420939013,1776757838464,-179.21847203,0.00010368,2]
[420939014,1776757838477,-500.0,0.00010368,2]
[420939015,1776757838489,-500.0,0.00010368,2]
[420939016,1776757838501,-500.0,0.00010368,2]
[420939017,1776757838512,-500.0,0.00010368,2]
[420939018,1776757838524,-500.0,0.00010368,2]
[420939019,1776757838536,-500.0,0.00010368,2]
[420939020,1776757838548,-500.0,0.00010368,2]
[420939021,1776757838559,-500.0,0.00010368,2]
[420939022,1776757838571,-349.83725962,0.00010368,2]
[420939023,1776757838583,-3127.332,0.00010368,2]
[420939024,1776757838595,-211.627,0.00010368,2]
[420939025,1776757838607,-13944.11178216,0.00010369,2]
[420939026,1776757838619,-183.54,0.00010369,2]
[420939027,1776757838631,-472.61640263,0.00010373,2]
[420939028,1776757838642,-152.0,0.00010377,7]
[420939029,1776757838655,-234.22249854,0.00010382,2]
[420939030,1776757838666,-578.20924308,0.00010389,2]
[420939031,1776757838678,-721.12765535,0.00010389,2]
[420939032,1776757838690,-170.43587252,0.00010389,2]
[420939033,1776757838703,-235.75327194,0.00010389,2]
[420939034,1776757838715,-244.476143,0.00010389,2]
[420939035,1776757838728,-253.52176029,0.00010389,2]
[420939036,1776757838741,-262.90206542,0.00010389,2]
[420939037,1776757838752,-272.62944185,0.00010389,2]
[420939038,1776757838764,-282.71673119,0.00010389,2]
[420939039,1776757838776,-293.17725025,0.00010389,2]
[420939040,1776757838787,-304.02480851,0.00010389,2]
[420939041,1776757838799,-315.27372642,0.00010389,2]
[420939042,1776757838810,-418.78546966,0.00010389,2]
[420939043,1776757838822,-300.0,0.00010474,2]
[420939044,1776757838833,-161.33,0.00010482,2]
[420939045,1776757838845,-151.0,0.00010575,2]
[420939046,1776757838857,-183.54,0.00010643,2]
[420939047,1776757838869,-1680.0,0.00010664,2]
[420939048,1776757838881,-300.0,0.00010665,2]
[420939049,1776757838893,-300.0,0.00010665,2]
[420939050,1776757838906,-619.12,0.00010701,2]
[420939051,1776757838918,-3530.0,0.00010701,2]
[420939052,1776757838930,-6031.0,0.00010701,2]
[420939053,1776757838941,-174.0,0.00010701,2]
[420939054,1776757838954,-416.0,0.00010701,2]
[420939055,1776757838966,-183.55,0.00010917,2]
[420939203,1776757840853,-460.0,0.00011024,5]
[420939204,1776757840908,-361.0,0.00011024,5]
[420939205,1776757840955,-152.6045477,0.00011099,2]
[420939206,1776757840983,-255.0,0.00011209,2]
[420939207,1776757840994,-337.0,0.00011214,2]
[420939208,1776757841005,-218.02,0.000113,2]
[420939209,1776757841017,-150.0,0.00011426,2]
[420939210,1776757841029,-19909.9138202,0.0001152,2]
[420939211,1776757841041,-202.13550004,0.00011624,2]
[420939214,1776757841054,-554.44545832,0.00011734,2]
[420939216,1776757841067,-161.33,0.00011792,2]
[420939218,1776757841079,-800.0,0.000118,4]
[420939220,1776757841089,-87.06017705,0.0001185,2]
[420939222,1776757841104,-361.96319295,0.0001185,2]
[420939223,1776757841115,-449.02338,0.0001185,2]
[420939224,1776757841125,-449.02338,0.0001186,2]
[420939225,1776757841137,-449.02338,0.0001189,2]
[420939226,1776757841149,-1100.0,0.000119,4]
[420939227,1776757841160,-15179.48692314,0.00011941,2]
[420939228,1776757841170,-449.02338,0.00011973,2]
[420939229,1776757841181,-449.02337,0.00011973,2]
[420939230,1776757841191,-260.0052707,0.00011987,2]
[420939231,1776757841203,-315.61615732,0.0001199,2]
[420939232,1776757841215,-300.0,0.00011999,2]
[420939233,1776757841225,-300.0,0.00011999,2]
[420939234,1776757841235,-300.0,0.00011999,2]
[420939235,1776757841246,-300.0,0.00011999,2]
[420939236,1776757841261,-300.0,0.00011999,2]
[420939237,1776757841272,-200.0,0.00011999,2]
[420939238,1776757841283,-249.18631514,0.00011999,2]
[420939239,1776757841293,-500.0,0.00011999,2]
[420939240,1776757841304,-502.55714014,0.00011999,2]
[420939241,1776757841314,-500.0,0.00011999,2]
[420939242,1776757841324,-500.0,0.00011999,2]
[420939243,1776757841335,-500.0,0.00011999,2]
[420939244,1776757841345,-500.0,0.00011999,2]
[420939245,1776757841356,-500.0,0.00011999,2]
[420939246,1776757841366,-464.97987221,0.00011999,2]
[420939247,1776757841376,-500.0,0.00011999,2]
[420939248,1776757841386,-500.0,0.00011999,2]
[420939249,1776757841396,-550.81191645,0.00011999,2]
[420939250,1776757841406,-500.0,0.00011999,2]
[420939251,1776757841416,-122570.27632193,0.00012,2]
[420939258,1776757842879,-3756.14778995,0.00012,2]
[420939259,1776757842891,-6149.7,0.00012,2]
[420939266,1776757843053,-11765.29547345,0.00012,2]
[420939269,1776757843364,-9729.21902814,0.00012,2]
[420939270,1776757843409,-4168.45762947,0.00012,2]
[420939271,1776757843425,-8251.83299175,0.00012,2]
[420939284,1776757843699,-317.82,0.00012,2]
[420939285,1776757843710,-296.50193827,0.00012,2]
[420939286,1776757843722,-6000.0,0.00012,2]
[420939288,1776757846271,-927.0,0.00010701,2]
[420939289,1776757846281,-10692.31223683,0.00012,2]
[420939290,1776757846357,-0.0632636,0.00012,2]
[420939291,1776757846369,-7139.48210726,0.00012,2]
[420939292,1776757846380,-5734.12045807,0.00012,2]
[420939293,1776757846508,-743.06187631,0.00012,2]
[420939294,1776757846519,-2250.0,0.00012,2]
[420939295,1776757846537,-3168.55151937,0.00012,2]
[420939297,1776757846548,-875.0,0.00012,2]
[420939301,1776758022141,500.0,0.00016226,30]
[420939302,1776758022178,500.0,0.00016226,30]
[420939303,1776758022211,500.0,0.00016226,30]
[420939304,1776758022241,150.0,0.00016226,30]
[420939305,1776758022281,150.0,0.00016226,30]
[420939306,1776758022311,270.17768635,0.00016226,30]
[420939307,1776758022343,208.14097972,0.00016226,30]
[420939308,1776758055208,207.49567277,0.00016226,30]
[420939309,1776758055237,500.0,0.00016226,30]
[420939310,1776758055293,500.0,0.00016226,30]
[420939311,1776758055333,500.0,0.00016226,30]
[420939312,1776758055376,251.1301046,0.00016226,30]
[420939313,1776758122300,170.8176538,0.00016226,30]
[420939314,1776758174360,3470.0,0.00016,30]
[420939315,1776758239393,150.0,0.00016226,30]
[420939316,1776758240058,150.0,0.00016226,30]
[420939323,1776758595553,150.0,0.00016226,30]
[420939324,1776758595814,150.0,0.00016226,30]
[420939325,1776758595965,213.07851662,0.00016226,30]
[420939338,1776759032254,-150.0,9.1e-05,2]
[420939339,1776759032264,-150.0,9.148e-05,2]
[420939340,1776759032274,-150.0,9.148e-05,2]
[420939341,1776759032283,-1391.54225109,9.334e-05,2]
[420939342,1776759032361,-608.45774891,9.334e-05,2]
[420939343,1776759032370,-500.0,9.451e-05,2]
[420939344,1776759032380,-500.0,9.554e-05,2]
[420939345,1776759032389,-2587.06,9.591e-05,2]
[420939346,1776759032399,-3418.58225109,9.595e-05,2]
[420939347,1776759032410,-182166.42704891,9.595e-05,2]
[420939348,1776759032419,-150.0,9.694e-05,2]
[420939349,1776759032428,-67600.37727809,9.695e-05,2]
[420939350,1776759032438,-260.0,9.863e-05,2]
[420939351,1776759032447,-9965.73889273,0.0001,2]
[420939352,1776759032456,-154.90700524,0.0001,2]
[420939353,1776759032465,-163.01233681,0.0001,2]
[420939354,1776759032479,-621.06,0.00010058,2]
[420939355,1776759032489,-1000.0,0.00010067,2]
[420939356,1776759032498,-2500.0,0.00010067,2]
[420939357,1776759032508,-5000.0,0.00010069,2]
[420939358,1776759032517,-239.7992247,0.00010073,2]
[420939359,1776759032526,-2000.0,0.0001013,2]
[420939360,1776759032536,-210.41077155,0.00010159,2]
[420939361,1776759032547,-153.51026176,0.00010164,2]
[420939362,1776759032557,-151.0,0.00010164,2]
[420939363,1776759032566,-500.0,0.00010166,2]
[420939364,1776759032576,-500.0,0.00010166,2]
[420939366,1776759032585,-372.20413996,0.00010166,2]
[420939368,1776759032594,-186.57983023,0.00010166,2]
[420939370,1776759032603,-500.0,0.00010166,2]
[420939372,1776759032613,-527.57777596,0.00010166,2]
[420939374,1776759032622,-174.4304206,0.00010166,2]
[420939376,1776759032632,-500.0,0.00010166,2]
[420939378,1776759032641,-500.0,0.00010166,2]
[420939380,1776759032650,-500.0,0.00010166,2]
[420939381,1776759032660,-500.0,0.00010166,2]
[420939382,1776759032670,-500.0,0.00010166,2]
[420939383,1776759032679,-500.0,0.00010166,2]
[420939385,1776759032689,-500.0,0.00010166,2]
[420939386,1776759032698,-500.0,0.00010166,2]
[420939387,1776759032707,-284.76347909,0.00010166,2]
[420939388,1776759032717,-500.0,0.00010166,2]
[420939389,1776759032726,-357.59482766,0.00010166,2]
[420939390,1776759032735,-500.0,0.00010166,2]